bitfinex-derivatives/quotes_BTCF0:USTF0_20250422
["timestamp","ask_amount","ask_price","bid_price","bid_amount"]
[1745327420186,0.3608,89556.0,89555.0,0.00016744]
[1745327420396,0.50669058,89556.0,89555.0,0.00016744]
[1745327421196,0.50669058,89556.0,89555.0,0.18566744]
[1745327421392,0.14589058,89556.0,89555.0,0.18866744]
[1745327421988,0.14589058,89556.0,89555.0,0.17866744]
[1745327422189,0.14597058,89556.0,89555.0,0.17866744]
[1745327422997,0.14589058,89556.0,89555.0,0.17866744]
[1745327423198,0.14597058,89556.0,89555.0,0.17866744]
[1745327423399,0.23321058,89556.0,89555.0,0.17866744]
[1745327424990,0.23313058,89556.0,89555.0,0.18066744]
[1745327425195,0.23321058,89556.0,89555.0,0.54936744]
[1745327425695,0.08732,89556.0,89555.0,0.54736744]
[1745327425991,0.08732,89556.0,89555.0,0.55036744]
[1745327426384,0.08732,89556.0,89555.0,0.53988667]
[1745327428691,0.08732,89556.0,89555.0,0.52691237]
[1745327429592,0.08732,89556.0,89555.0,0.51991237]
[1745327432796,0.105,89600.0,89555.0,0.96481637]
[1745327433001,0.41139,89626.0,89587.0,0.3608]
[1745327433002,0.16083069,89625.0,89587.0,0.3608]
[1745327433300,0.16083069,89625.0,89612.0,0.3608]
[1745327433301,0.26005305,89620.0,89612.0,0.3608]
[1745327433499,0.26005305,89620.0,89613.0,0.1906]
[1745327433694,0.10172976,89614.0,89613.0,0.3687]
[1745327433892,0.10172976,89614.0,89605.0,0.00016744]
[1745327434099,0.1932,89613.0,89605.0,0.19216744]
[1745327434304,0.08724,89619.0,89606.0,0.27117024]
[1745327434689,8e-05,89613.0,89606.0,0.27117024]
[1745327435095,0.08724,89612.0,89606.0,0.46317024]
[1745327435293,0.1932,89611.0,89606.0,0.46317024]
[1745327436101,0.08724,89610.0,89606.0,0.46317024]
[1745327436691,0.08724,89610.0,89607.0,0.3608]
[1745327437202,0.08724,89610.0,89608.0,0.1896]
[1745327437401,0.08724,89610.0,89608.0,0.38]
[1745327437703,0.08732,89610.0,89608.0,0.38]
[1745327438198,0.08732,89610.0,89608.0,0.572]
[1745327439101,0.70552658,89609.0,89608.0,0.08093472]
[1745327439405,0.59393058,89609.0,89608.0,0.06696462]
[1745327439607,0.52862658,89609.0,89608.0,0.06696462]
[1745327440302,0.88942658,89609.0,89608.0,0.06696462]
[1745327440503,1.06942658,89609.0,89608.0,0.06696462]
[1745327441002,1.06942658,89609.0,89581.0,0.3608]
[1745327441003,1.31942658,89609.0,89581.0,0.3608]
[1745327441296,0.3608,89583.0,89573.0,0.3608]
[1745327441505,0.45354,89582.0,89573.0,0.3608]
[1745327442096,0.45362,89582.0,89573.0,0.5528]
[1745327442508,0.45354,89582.0,89573.0,0.5528]
[1745327442804,0.45362,89582.0,89573.0,0.5528]
[1745327443893,0.36638,89582.0,89573.0,0.5528]
[1745327444105,0.08724,89581.0,89573.0,0.5528]
[1745327444405,0.08724,89581.0,89574.0,0.3754]
[1745327444603,0.3742,89580.0,89574.0,0.3754]
[1745327444796,0.1893,89580.0,89574.0,0.3754]
[1745327445296,0.3608,89579.0,89574.0,0.185]
[1745327445497,0.5457,89579.0,89574.0,0.185]
[1745327445801,0.1893,89578.0,89574.0,0.185]
[1745327446003,0.1893,89578.0,89574.0,0.186]
[1745327446191,0.1815,89577.0,89574.0,0.186]
[1745327446399,0.50669058,89576.0,89574.0,0.186]
[1745327446602,0.33519058,89576.0,89574.0,0.186]
[1745327446898,0.1815,89575.0,89574.0,0.185]
[1745327447105,0.43903058,89575.0,89574.0,0.185]
[1745327447305,0.62283058,89575.0,89574.0,0.185]
[1745327447608,0.98363058,89575.0,89574.0,0.06232]
[1745327448397,0.98363058,89575.0,89574.0,0.04921883]
[1745327449407,0.99194982,89575.0,89574.0,0.04921883]
[1745327449709,1.24194982,89575.0,89574.0,0.0352441]
[1745327449893,0.99194982,89575.0,89574.0,0.0352441]
[1745327450401,0.99194982,89575.0,89574.0,0.01447052]
[1745327450596,0.99202982,89575.0,89574.0,0.01447052]
[1745327451503,0.63114982,89575.0,89574.0,0.01447052]
[1745327451698,0.63122982,89575.0,89574.0,0.01447052]
[1745327453001,0.63114982,89575.0,89574.0,0.00747052]
[1745327453196,0.00839924,89575.0,89574.0,0.00747052]
[1745327453706,0.00839924,89575.0,89574.0,0.00847052]
[1745327453906,0.00831924,89575.0,89574.0,0.00847052]
[1745327454108,8e-05,89575.0,89574.0,0.00847052]
[1745327454406,8e-05,89575.0,89574.0,0.00947052]
[1745327454999,0.0848,89575.0,89574.0,0.00947052]
[1745327455501,0.00843517,89575.0,89574.0,0.00947052]
[1745327455702,0.09315517,89575.0,89574.0,0.00256052]
[1745327455902,0.09315517,89575.0,89563.0,0.37793948]
[1745327456111,0.1733698,89573.0,89563.0,0.37793948]
[1745327456311,0.3906,89572.0,89563.0,0.37793948]
[1745327457003,0.3608,89570.0,89552.0,0.3608]
[1745327457305,0.53649058,89569.0,89563.0,0.192]
[1745327457696,0.53649058,89569.0,89563.0,0.195]
[1745327458209,0.53657058,89569.0,89564.0,0.1823]
[1745327458409,0.53649058,89569.0,89564.0,0.1823]
[1745327459101,0.53649058,89569.0,89564.0,0.5619]
[1745327459301,0.53657058,89569.0,89564.0,0.5619]
[1745327460008,0.08472,89568.0,89566.0,0.3608]
[1745327460203,0.08472,89568.0,89567.0,0.3803]
[1745327460707,0.0848,89568.0,89567.0,0.3803]
[1745327460909,0.0848,89568.0,89567.0,0.3733]
[1745327461101,0.0848,89568.0,89567.0,0.5653]
[1745327462501,0.557248,89568.0,89567.0,0.192]
[1745327462713,0.70313858,89568.0,89567.0,0.18047104]
[1745327462909,0.70313858,89568.0,89567.0,0.16649577]
[1745327462910,0.557248,89568.0,89567.0,0.16649577]
[1745327463210,0.557248,89568.0,89567.0,0.15739324]
[1745327463410,2.057248,89568.0,89567.0,0.15739324]
[1745327463608,2.307248,89568.0,89553.0,0.11822157]
[1745327463920,0.3608,89560.0,89542.0,0.00502555]
[1745327464112,0.3608,89560.0,89543.0,0.188]
[1745327464113,0.1733698,89552.0,89543.0,0.188]
[1745327464414,0.27862,89551.0,89543.0,0.188]
[1745327465112,0.47412,89551.0,89543.0,0.38]
[1745327465310,0.83492,89551.0,89543.0,0.38]
[1745327466408,0.84937067,89551.0,89543.0,0.38]
[1745327466814,0.01445067,89551.0,89544.0,0.5555]
[1745327467015,0.08472,89550.0,89544.0,0.5555]
[1745327467312,0.08472,89549.0,89544.0,0.7475]
[1745327467517,0.08472,89549.0,89545.0,0.3871]
[1745327467912,0.08472,89549.0,89546.0,0.1947]
[1745327468113,0.0848,89549.0,89546.0,0.3867]
[1745327468313,0.0848,89549.0,89547.0,0.1941]
[1745327468516,0.0848,89549.0,89547.0,0.1871]
[1745327468725,0.1811,89548.0,89547.0,0.1871]
[1745327468907,0.01428453,89553.0,89548.0,0.111672]
[1745327469109,0.08488744,89560.0,89548.0,0.192]
[1745327469305,0.08488744,89560.0,89559.0,0.3608]
[1745327469715,0.00024744,89560.0,89559.0,0.472456]
[1745327469912,0.10212225,89586.0,89559.0,0.722456]
[1745327470110,0.00010801,89580.0,89574.0,0.3608]
[1745327470311,0.0142622,89580.0,89575.0,0.1892]
[1745327470619,0.08472,89579.0,89575.0,0.1892]
[1745327470811,0.01423419,89580.0,89575.0,0.1892]
[1745327471011,0.08472,89579.0,89575.0,0.1892]
[1745327471213,0.26582,89579.0,89575.0,0.3812]
[1745327471440,0.08486581,89604.0,89578.0,0.3608]
[1745327471612,0.1733698,89600.0,89592.0,0.3608]
[1745327471927,0.1733698,89600.0,89593.0,0.1856]
[1745327472108,8e-05,89596.0,89593.0,0.5592]
[1745327472415,8e-05,89596.0,89570.0,0.0558205]
[1745327472416,0.3608,89594.0,89542.0,0.00502555]
[1745327472616,0.1985,89593.0,89586.0,0.00016744]
[1745327472826,0.3608,89584.0,89543.0,0.1856]
[1745327473012,0.3608,89544.0,89543.0,0.1856]
[1745327473322,0.44552,89544.0,89543.0,0.1856]
[1745327473508,0.44552,89544.0,89510.0,0.055858]
[1745327473509,0.44552,89544.0,89531.0,0.06574555]
[1745327473713,0.3608,89532.0,89500.0,0.2733698]
[1745327473921,0.3608,89517.0,89510.0,0.1733698]
[1745327474110,0.3692958,89517.0,89516.0,0.19702701]
[1745327474313,0.3692958,89517.0,89516.0,0.308739]
[1745327474816,0.7300958,89517.0,89516.0,0.308739]
[1745327475016,0.7300958,89517.0,89516.0,0.19702701]
[1745327475419,0.7300958,89517.0,89516.0,0.37812701]
[1745327475825,0.7300958,89517.0,89516.0,0.39212701]
[1745327476418,0.7300958,89517.0,89516.0,0.38512701]
[1745327476626,0.7300958,89517.0,89516.0,0.37812701]
[1745327476819,0.7300958,89517.0,89516.0,0.56242701]
[1745327477013,0.7300958,89517.0,89516.0,0.19702701]
[1745327478212,0.7300958,89517.0,89516.0,0.19802701]
[1745327478411,0.7300958,89517.0,89516.0,0.07668287]
[1745327478816,0.8418078,89517.0,89516.0,0.07668287]
[1745327479014,0.8418078,89517.0,89516.0,0.06269942]
[1745327479212,0.7300958,89517.0,89516.0,0.06269942]
[1745327479617,0.7300958,89517.0,89516.0,0.44869942]
[1745327479618,0.7301758,89517.0,89516.0,0.44869942]
[1745327479921,0.8147358,89517.0,89516.0,0.92212101]
[1745327480126,0.8148158,89517.0,89516.0,0.81041141]
[1745327480328,0.8147358,89517.0,89516.0,0.81041141]
[1745327480622,0.8148158,89517.0,89516.0,0.92212101]
[1745327480813,0.8147358,89517.0,89516.0,0.92212101]
[1745327481011,0.00016754,89525.0,89516.0,0.81041141]
[1745327481211,0.00016754,89525.0,89524.0,0.1116996]
[1745327481614,0.00016754,89525.0,89524.0,0.2233996]
[1745327481615,0.00024754,89525.0,89524.0,0.2233996]
[1745327481817,0.0087508,89525.0,89524.0,0.6095996]
[1745327482125,0.0087508,89525.0,89524.0,0.8015996]
[1745327482523,0.0087508,89525.0,89524.0,0.6899]
[1745327482727,0.3695508,89525.0,89524.0,0.6899]
[1745327482924,0.3695508,89525.0,89524.0,0.8085996]
[1745327483527,0.3694708,89525.0,89524.0,0.8085996]
[1745327483828,0.3695508,89525.0,89524.0,0.5852]
[1745327484021,0.3695508,89525.0,89524.0,0.5782]
[1745327484419,0.3695508,89525.0,89524.0,0.3881]
[1745327485325,0.3695508,89525.0,89524.0,0.199]
[1745327485528,0.3695508,89525.0,89524.0,0.19592]
[1745327486119,0.7312508,89525.0,89524.0,0.19592]
[1745327486324,0.055853,89519.0,89515.0,0.00016754]
[1745327486628,0.3608,89516.0,89515.0,0.00016754]
[1745327486833,0.44548,89516.0,89515.0,0.00016754]
[1745327487231,0.44548,89516.0,89515.0,0.19216754]
[1745327489231,0.44848,89516.0,89515.0,0.19216754]
[1745327489623,0.44856,89516.0,89515.0,0.19216754]
[1745327490831,0.44556,89516.0,89515.0,0.19216754]
[1745327491427,0.44548,89516.0,89515.0,0.19216754]
[1745327491621,0.44556,89516.0,89515.0,0.19216754]
[1745327491824,0.45056,89516.0,89515.0,0.18516754]
[1745327492530,0.557272,89516.0,89515.0,0.18516754]
[1745327493834,0.6689816,89516.0,89515.0,0.18516754]
[1745327494022,0.6689016,89516.0,89515.0,0.18516754]
[1745327494222,0.6689816,89516.0,89515.0,0.18516754]
[1745327494724,0.6719816,89516.0,89515.0,0.18516754]
[1745327495430,0.6689816,89516.0,89515.0,0.17387444]
[1745327495631,0.6719816,89516.0,89515.0,0.17387444]
[1745327497234,0.6719816,89516.0,89515.0,0.192]
[1745327497631,1.0659816,89516.0,89515.0,0.192]
[1745327498025,1.0679816,89516.0,89515.0,0.192]
[1745327498730,1.0679816,89516.0,89515.0,0.18640651]
[1745327499235,0.956272,89516.0,89500.0,0.00218364]
[1745327499434,0.7216,89501.0,89500.0,0.00218364]
[1745327499623,0.80628,89501.0,89500.0,0.00218364]
[1745327499830,2.30628,89501.0,89500.0,0.00218364]
[1745327500228,2.30628,89501.0,89500.0,0.19418364]
[1745327501731,2.30728,89501.0,89500.0,0.19418364]
[1745327502434,2.30736,89501.0,89500.0,0.19418364]
[1745327502836,2.30728,89501.0,89500.0,0.19418364]
[1745327503632,2.30736,89501.0,89500.0,0.19418364]
[1745327504532,0.72168,89501.0,89500.0,0.19618364]
[1745327504729,0.80636,89501.0,89500.0,0.19618364]
[1745327504933,0.80628,89501.0,89500.0,0.19618364]
[1745327505130,0.80636,89501.0,89500.0,0.19618364]
[1745327505329,0.72168,89501.0,89500.0,0.19618364]
[1745327505534,0.10223717,89506.0,89501.0,0.0558639]
[1745327505731,0.08468,89505.0,89501.0,0.483628]
[1745327505937,0.08468,89505.0,89502.0,0.111728]
[1745327506138,0.08476,89505.0,89503.0,0.111728]
[1745327506333,0.08476,89505.0,89504.0,0.4836246]
[1745327506535,0.08476,89505.0,89504.0,0.4766246]
[1745327506739,0.10223717,89506.0,89505.0,0.1117233]
[1745327506942,0.10223717,89506.0,89505.0,0.5953473]
[1745327507238,0.08468,89510.0,89509.0,0.1117171]
[1745327507441,0.08468,89510.0,89506.0,0.055861]
[1745327507645,0.08468,89510.0,89509.0,0.1117183]
[1745327508130,0.08468,89510.0,89509.0,0.5727]
[1745327508337,0.08468,89510.0,89509.0,0.6844183]
[1745327508535,0.08468,89510.0,89509.0,0.7961383]
[1745327508843,0.08468,89510.0,89509.0,0.68442]
[1745327509144,0.08468,89510.0,89509.0,0.68842]
[1745327509647,0.08468,89510.0,89509.0,0.68442]
[1745327509843,0.08468,89510.0,89509.0,0.8001383]
[1745327510040,0.00877881,89525.0,89524.0,0.1116996]
[1745327510237,0.3608,89547.0,89523.0,0.0558502]
[1745327510441,0.08252,89535.0,89529.0,0.0558463]
[1745327510636,0.08252,89535.0,89530.0,0.362]
[1745327511041,0.08252,89535.0,89530.0,0.473691]
[1745327511243,0.08252,89535.0,89531.0,0.1116907]
[1745327511546,0.00823694,89535.0,89530.0,0.554]
[1745327511744,8e-05,89536.0,89535.0,0.1116859]
[1745327512044,0.08252,89539.0,89535.0,0.1116859]
[1745327512045,0.08252,89539.0,89538.0,0.1116821]
[1745327512247,0.00016754,89541.0,89540.0,0.1116796]
[1745327512643,0.00016754,89541.0,89540.0,0.2233596]
[1745327512946,0.00016754,89541.0,89540.0,0.5942596]
[1745327513145,0.00016754,89541.0,89540.0,0.7862596]
[1745327514143,0.00016754,89541.0,89540.0,0.7792596]
[1745327514845,0.10221703,89575.0,89555.0,0.1116609]
[1745327514846,0.08248,89558.0,89555.0,0.1116609]
[1745327515242,0.08248,89567.0,89555.0,0.303664]
[1745327515440,0.08258801,89567.0,89556.0,0.3752]
[1745327515640,0.08258801,89567.0,89556.0,0.4310294]
[1745327515839,0.08248,89567.0,89559.0,0.1116552]
[1745327516046,0.08248,89567.0,89560.0,0.1928]
[1745327516839,0.02256,89567.0,89560.0,0.1928]
[1745327517245,0.02256,89567.0,89560.0,0.3848]
[1745327518041,0.03090963,89567.0,89560.0,0.3848]
[1745327518354,0.1812,89566.0,89560.0,0.3848]
[1745327518655,0.3658,89566.0,89560.0,0.192]
[1745327518953,0.3608,89561.0,89560.0,0.192]
[1745327522045,0.36088,89561.0,89560.0,0.185]
[1745327522246,0.3608,89561.0,89560.0,0.185]
[1745327522442,0.36088,89561.0,89560.0,0.185]
[1745327523151,0.00834963,89567.0,89566.0,0.1116472]
[1745327523354,0.00016754,89570.0,89567.0,0.1116458]
[1745327523548,0.00016754,89570.0,89565.0,0.3539]
[1745327523747,0.00016754,89570.0,89566.0,0.1116465]
[1745327524155,0.00016754,89570.0,89567.0,0.3539]
[1745327524342,0.15606754,89570.0,89567.0,0.3539]
[1745327524542,0.15606754,89570.0,89567.0,0.3519]
[1745327525048,0.16441086,89570.0,89567.0,0.3519]
[1745327525250,0.16441086,89570.0,89567.0,0.5439]
[1745327525450,0.08248,89569.0,89567.0,0.5459]
[1745327525755,0.08248,89569.0,89567.0,0.6575456]
[1745327525947,0.08248,89569.0,89567.0,0.657546]
[1745327526146,0.08248,89569.0,89567.0,0.5459]
[1745327526750,0.08256,89569.0,89567.0,0.5459]
[1745327527149,0.1594,89568.0,89567.0,0.5459]
[1745327527543,0.3216,89568.0,89567.0,0.5459]
[1745327528051,0.3216,89568.0,89567.0,0.5469]
[1745327528253,0.3216,89568.0,89567.0,0.3931]
[1745327528649,0.3216,89568.0,89567.0,0.195]
[1745327528950,0.8318,89568.0,89547.0,0.0558348]
[1745327529151,0.8318,89568.0,89553.0,0.19216754]
[1745327529452,0.3608,89555.0,89553.0,0.19216754]
[1745327529651,0.38754,89554.0,89553.0,0.18516754]
[1745327531552,0.3051,89554.0,89553.0,0.18516754]
[1745327531856,0.38758,89554.0,89553.0,0.18516754]
[1745327532954,0.38766,89554.0,89553.0,0.18516754]
[1745327533460,0.38966,89554.0,89553.0,0.18516754]
[1745327534957,0.38958,89554.0,89553.0,0.18516754]
[1745327535152,0.38966,89554.0,89553.0,0.18516754]
[1745327535358,0.38958,89554.0,89553.0,0.18516754]
[1745327535549,0.38766,89554.0,89553.0,0.18916754]
[1745327536450,0.38766,89554.0,89553.0,0.18816754]
[1745327537249,0.38766,89554.0,89553.0,0.18616754]
[1745327537450,0.38766,89554.0,89553.0,0.17916754]
[1745327538964,0.38766,89554.0,89553.0,0.17816754]
[1745327539160,0.38766,89554.0,89553.0,0.18116754]
[1745327539950,0.38766,89554.0,89553.0,0.17816754]
[1745327540145,0.38766,89554.0,89553.0,0.18116754]
[1745327540356,1.07634401,89554.0,89518.0,0.3608]
[1745327540554,0.3608,89537.0,89520.0,0.1117034]
[1745327540758,0.055843,89535.0,89521.0,0.2754032]
[1745327541054,0.3765436,89534.0,89521.0,0.1637]
[1745327541257,0.3765436,89534.0,89522.0,0.1117018]
[1745327541553,0.3207,89534.0,89522.0,0.1117013]
[1745327541753,0.3207,89534.0,89523.0,0.1116999]
[1745327542151,0.3207,89534.0,89523.0,0.3036999]
[1745327542548,0.07968,89533.0,89523.0,0.3036999]
[1745327542948,0.07968,89533.0,89523.0,0.192]
[1745327543150,0.3228,89532.0,89523.0,0.3087002]
[1745327543860,0.3228,89532.0,89524.0,0.1116991]
[1745327544060,0.00016754,89537.0,89526.0,0.3608]
[1745327544255,0.00016754,89537.0,89536.0,0.4724846]
[1745327544648,0.00016754,89537.0,89536.0,0.5841726]
[1745327545053,0.00016754,89537.0,89536.0,0.8934726]
[1745327545259,0.00024754,89537.0,89536.0,1.0784726]
[1745327545457,0.00016754,89537.0,89536.0,1.0784726]
[1745327546049,0.00024754,89537.0,89536.0,1.0784726]
[1745327546248,0.00124754,89537.0,89536.0,1.0844726]
[1745327547055,0.00024754,89537.0,89536.0,1.0784726]
[1745327547359,0.00116754,89537.0,89536.0,1.0844726]
[1745327547663,0.00124754,89537.0,89536.0,1.0844726]
[1745327548858,0.00124754,89537.0,89536.0,1.0854726]
[1745327550051,0.00124754,89537.0,89536.0,0.9737846]
[1745327551657,0.00024754,89537.0,89536.0,0.9667846]
[1745327551856,0.00124754,89537.0,89536.0,0.9737846]
[1745327552260,0.00124754,89537.0,89536.0,0.8691]
[1745327552460,0.00124754,89537.0,89536.0,0.9807846]
[1745327553061,0.00124754,89537.0,89536.0,0.8621]
[1745327553261,0.00124754,89537.0,89536.0,0.9737846]
[1745327553863,0.29364754,89537.0,89536.0,0.9737846]
[1745327554065,0.29364754,89537.0,89536.0,0.8621]
[1745327554268,0.29364754,89537.0,89536.0,0.7028]
[1745327554561,0.29364754,89537.0,89536.0,0.199]
[1745327554963,0.29364754,89537.0,89536.0,0.18502308]
[1745327555759,0.29364754,89537.0,89536.0,0.29670768]
[1745327555959,0.29256754,89537.0,89536.0,0.29470768]
[1745327556165,0.00024754,89537.0,89536.0,0.65550768]
[1745327556365,0.00019684,89551.0,89536.0,0.65550768]
[1745327556366,0.10217905,89562.0,89536.0,1.19121108]
[1745327556561,0.1353,89561.0,89560.0,0.1116547]
[1745327556762,0.2824,89561.0,89560.0,0.1106547]
[1745327556965,0.2824,89561.0,89559.0,0.13641631]
[1745327557172,0.2824,89561.0,89560.0,0.192]
[1745327557468,0.28248,89561.0,89560.0,0.192]
[1745327558363,0.28248,89561.0,89560.0,0.16717153]
[1745327558759,0.11063038,89570.0,89560.0,0.16717153]
[1745327558959,0.07968,89561.0,89560.0,0.16717153]
[1745327559767,0.44048,89561.0,89560.0,0.16717153]
[1745327560668,0.07968,89561.0,89560.0,0.16017153]
[1745327560868,0.17342489,89570.0,89560.0,0.16017153]
[1745327561167,0.07968,89569.0,89560.0,0.16017153]
[1745327561372,0.0086657,89570.0,89565.0,0.3608]
[1745327561759,0.07968,89569.0,89565.0,0.3608]
[1745327561966,0.35308,89569.0,89565.0,0.3608]
[1745327562162,0.35316,89569.0,89565.0,0.5528]
[1745327562361,0.07968,89568.0,89565.0,0.5528]
[1745327563067,8e-05,89568.0,89566.0,0.1392]
[1745327563258,8e-05,89568.0,89566.0,0.2771]
[1745327563460,0.07968,89567.0,89566.0,0.2771]
[1745327563661,0.6875,101820.0,89566.0,0.2771]
[1745327563860,0.1429,89575.0,89573.0,0.3608]
[1745327564059,0.07968,89574.0,89573.0,0.3608]
[1745327564463,0.09727387,89574.0,89573.0,0.3608]
[1745327564970,0.07968,89574.0,89573.0,0.3608]
[1745327565164,0.07968,89574.0,89573.0,0.5528]
[1745327565864,0.07968,89574.0,89573.0,0.192]
[1745327566166,0.001,89574.0,89573.0,0.192]
[1745327566370,0.08068,89574.0,89573.0,0.17802673]
[1745327566867,0.09833293,89574.0,89573.0,0.17802673]
[1745327567268,0.09833293,89574.0,89573.0,0.16964278]
[1745327567569,0.20997293,89574.0,89573.0,0.16964278]
[1745327568262,0.20997293,89574.0,89573.0,0.16264278]
[1745327569067,0.09833293,89574.0,89573.0,0.16264278]
[1745327570270,0.09833293,89574.0,89573.0,0.05471874]
[1745327571872,0.09733293,89574.0,89573.0,0.05471874]
[1745327572069,0.09833293,89574.0,89573.0,0.05471874]
[1745327572974,0.09733293,89574.0,89573.0,0.05571874]
[1745327574270,0.01765293,89574.0,89573.0,0.41651874]
[1745327574475,0.1478,89605.0,89573.0,1.18955874]
[1745327574768,0.02777023,89595.0,89594.0,0.3608]
[1745327575074,0.00508,89595.0,89594.0,0.3608]
[1745327575275,0.00508,89595.0,89594.0,0.5528]
[1745327575469,0.00508,89595.0,89594.0,0.52597758]
[1745327575774,0.00508,89595.0,89594.0,0.53970311]
[1745327575775,0.004,89595.0,89594.0,0.53970311]
[1745327576074,0.004,89595.0,89594.0,0.65131541]
[1745327576278,0.00408,89595.0,89594.0,0.65131541]
[1745327576487,0.02212507,89595.0,89594.0,0.65131541]
[1745327577164,0.02212507,89595.0,89594.0,0.93151541]
[1745327577566,0.00847398,89604.0,89603.0,0.1116011]
[1745327577767,0.00010801,89609.0,89603.0,0.3608]
[1745327577962,0.1417,89613.0,89603.0,0.3608]
[1745327578170,0.10077,89606.0,89604.0,0.2878]
[1745327578477,0.12293359,89606.0,89604.0,0.2878]
[1745327579274,0.12393359,89606.0,89604.0,0.4798]
[1745327580273,0.12393359,89606.0,89605.0,0.1115986]
[1745327580574,0.12385359,89606.0,89605.0,0.1115986]
[1745327580774,0.12393359,89606.0,89605.0,0.2573986]
[1745327580975,0.12393359,89606.0,89605.0,0.1458]
[1745327581274,0.13223659,89606.0,89605.0,0.3378]
[1745327583375,0.13223659,89606.0,89605.0,0.4493986]
[1745327583565,0.13223659,89606.0,89605.0,0.3378]
[1745327583973,0.13215659,89606.0,89605.0,0.3378]
[1745327584170,0.13223659,89606.0,89605.0,0.4793]
[1745327587069,0.00010801,89615.0,89605.0,0.4793]
[1745327587372,0.005,89621.0,89614.0,0.3608]
[1745327587568,0.01332522,89621.0,89615.0,0.2777]
[1745327587776,0.005,89621.0,89615.0,0.2777]
[1745327588173,0.02695011,89621.0,89616.0,0.1392]
[1745327588369,0.005,89621.0,89616.0,0.1392]
[1745327588582,0.005,89621.0,89617.0,0.2777]
[1745327589079,0.005,89621.0,89617.0,0.4697]
[1745327589578,0.005,89621.0,89617.0,0.4667]
[1745327590277,0.01357753,89621.0,89617.0,0.4667]
[1745327590480,0.1282,89620.0,89617.0,0.4667]
[1745327590678,0.1282,89620.0,89617.0,0.45273411]
[1745327591086,0.1282,89620.0,89617.0,0.44673411]
[1745327592083,0.2683,89620.0,89617.0,0.44673411]
[1745327592381,0.03569455,89621.0,89617.0,0.44673411]
[1745327592687,8e-05,89620.0,89617.0,0.44673411]
[1745327593485,8e-05,89620.0,89618.0,0.1323]
[1745327593883,8e-05,89620.0,89619.0,0.1349]
[1745327594080,8e-05,89620.0,89619.0,0.3269]
[1745327594381,8e-05,89620.0,89619.0,0.4622]
[1745327594980,0.03530201,89621.0,89619.0,0.4622]
[1745327595177,8e-05,89620.0,89619.0,0.4622]
[1745327596488,0.13788,89620.0,89619.0,0.4622]
[1745327597486,8e-05,89620.0,89619.0,0.4622]
[1745327598882,8e-05,89620.0,89619.0,0.4602]
[1745327599084,0.13788,89620.0,89619.0,0.4602]
[1745327600887,0.1378,89620.0,89619.0,0.4602]
[1745327601081,0.13788,89620.0,89619.0,0.4602]
[1745327601783,0.13788,89620.0,89619.0,0.17519746]
[1745327601983,0.27438,89620.0,89619.0,0.06633627]
[1745327603181,0.27438,89620.0,89619.0,0.01335001]
[1745327604387,0.2743,89620.0,89619.0,0.01335001]
[1745327604688,0.27438,89620.0,89619.0,0.01335001]
[1745327606498,0.27438,89620.0,89619.0,0.00635001]
[1745327606891,0.27438,89620.0,89614.0,0.3608]
[1745327607289,0.27438,89620.0,89619.0,0.192]
[1745327607681,0.35058,89620.0,89619.0,0.192]
[1745327608492,0.635964,89620.0,89594.0,0.3608]
[1745327608787,0.17342489,89610.0,89595.0,0.1422]
[1745327608988,0.2666,89609.0,89595.0,0.1422]
[1745327610086,0.26668,89609.0,89596.0,0.1421]
[1745327611182,0.26668,89609.0,89596.0,0.3341]
[1745327611693,0.3608,89605.0,89596.0,0.192]
[1745327611889,0.0762,89608.0,89596.0,0.192]
[1745327611890,0.2723,89604.0,89596.0,0.192]
[1745327612691,0.472408,89603.0,89596.0,0.192]
[1745327613291,0.383908,89602.0,89596.0,0.192]
[1745327613789,0.111608,89601.0,89596.0,0.192]
[1745327614291,0.3608,89603.0,89596.0,0.192]
[1745327614589,0.111608,89602.0,89596.0,0.192]
[1745327614983,0.111608,89601.0,89596.0,0.192]
[1745327615294,0.111608,89602.0,89596.0,0.192]
[1745327615486,0.4095,89607.0,89596.0,0.192]
[1745327615683,1.57624,89606.0,89601.0,0.3608]
[1745327615882,1.5,89606.0,89602.0,0.1481]
[1745327616083,0.07624,89605.0,89602.0,0.3401]
[1745327616392,0.07624,89605.0,89603.0,0.1414]
[1745327616592,0.07632,89605.0,89603.0,0.1414]
[1745327616790,0.07632,89605.0,89604.0,0.1397]
[1745327617288,0.07632,89605.0,89604.0,0.12573077]
[1745327618087,0.07632,89605.0,89604.0,0.31773077]
[1745327618486,0.07632,89605.0,89604.0,0.31423644]
[1745327618884,0.07632,89605.0,89604.0,0.30082644]
[1745327620284,8e-05,89605.0,89604.0,0.30082644]
[1745327620489,0.07632,89605.0,89604.0,0.63564234]
[1745327620689,0.07632,89605.0,89604.0,0.67494244]
[1745327620884,0.07624,89605.0,89604.0,0.67494244]
[1745327621084,0.07632,89605.0,89604.0,0.67494244]
[1745327621292,0.07632,89605.0,89604.0,0.45172644]
[1745327621594,0.07632,89605.0,89604.0,0.28101467]
[1745327621787,8e-05,89605.0,89604.0,0.50423067]
[1745327621986,0.07632,89605.0,89604.0,0.48885024]
[1745327622595,0.07632,89605.0,89604.0,0.84965024]
[1745327622897,8e-05,89605.0,89604.0,0.84965024]
[1745327623495,0.07624,89607.0,89604.0,0.84965024]
[1745327623800,8e-05,89605.0,89604.0,0.73803414]
[1745327623985,0.00010801,89618.0,89611.0,0.0557956]
[1745327624293,0.00010801,89618.0,89617.0,0.3608]
[1745327624491,0.66110229,89639.0,89617.0,0.584016]
[1745327624692,0.66110229,89639.0,89628.0,0.0557844]
[1745327624693,0.00019684,89638.0,89628.0,0.0557844]
[1745327624888,0.10210229,89639.0,89637.0,0.3608]
[1745327625087,0.07624,89641.0,89638.0,0.2897]
[1745327625698,1e-08,89641.0,89640.0,0.223216]
[1745327625887,0.08149773,89649.0,89640.0,0.19640577]
[1745327626086,0.02720539,89647.0,89646.0,0.19640577]
[1745327626285,0.03572513,89647.0,89641.0,0.19640577]
[1745327626584,0.005,89647.0,89641.0,0.18902577]
[1745327626789,0.07624,89646.0,89642.0,0.18902577]
[1745327626996,0.07624,89646.0,89643.0,0.2907]
[1745327627197,0.07624,89646.0,89643.0,0.4827]